fUST/lending_fUST_20250823
["ID","MTS","AMOUNT","RATE_DAILY","PERIOD"]
[381014532,1755945044932,-263.185998,0.0002823,7]
[381014533,1755945044942,-263.185998,0.0002823,7]
[381014534,1755945044951,-263.185998,0.0002823,7]
[381014535,1755945044961,-263.185994,0.0002823,7]
[381014536,1755945044971,-151.0,0.0002823,7]
[381014537,1755945044980,-217.23432,0.0002823,7]
[381014538,1755945044990,-151.0,0.0002823,7]
[381014539,1755945045000,-151.0,0.0002823,7]
[381014540,1755945045009,-84904.4344209,0.0002823,2]
[381014541,1755945045020,-2979.5001388,0.0002823,2]
[381014542,1755945045029,-151.0,0.0002823,7]
[381014543,1755945045039,-151.0,0.0002823,7]
[381014544,1755945045049,-151.0,0.0002823,7]
[381014545,1755945045058,-151.0,0.0002823,7]
[381014546,1755945045068,-177.230381,0.0002823,7]
[381014547,1755945045078,-151.0,0.0002823,7]
[381014548,1755945045087,-151.0,0.0002823,7]
[381014549,1755945045097,-610.28091887,0.0002823,2]
[381014550,1755945045107,-101437.59173311,0.0002824,15]
[381014551,1755945045767,-319.68470282,0.0002249,2]
[381014552,1755945045777,-319.68470282,0.00027669,8]
[381014553,1755945045787,-382.54,0.00027863,10]
[381014554,1755945045796,-2919.35419702,0.0002824,15]
[381014555,1755945045824,-319.68470282,0.00024216,2]
[381014556,1755945045833,-1746.88247055,0.0002824,15]
[381014557,1755945045845,-42726.44097771,0.0002824,15]
[381014560,1755945046301,-319.68470282,0.00025943,4]
[381014561,1755945046311,-12800.29834418,0.0002824,15]
[381014562,1755945046322,-50691.75884252,0.0002824,15]
[381014564,1755945046806,-3633.00193785,0.0002824,15]
[381014565,1755945046817,-1251.44045133,0.0002824,15]
[381014566,1755945046860,-151.0,0.00027871,7]
[381014567,1755945046869,-724.93391366,0.0002824,15]
[381014568,1755945046964,-2591.98704801,0.0002824,15]
[381014575,1755945802682,165.848041,0.00013699,2]
[381014620,1755946231989,-337.62257598,0.0002249,2]
[381014622,1755946231999,-337.62257598,0.00024216,2]
[381014624,1755946232008,-300.0,0.00024999,2]
[381014626,1755946232020,-300.0,0.00024999,2]
[381014628,1755946232029,-590.31191667,0.00024999,2]
[381014630,1755946232046,-609.68808333,0.00024999,2]
[381014632,1755946232056,-590.31191667,0.00025,2]
[381014684,1755946237799,-6064.19330165,0.00025,2]
[381014685,1755946237810,-351.27555648,0.00025,2]
[381014686,1755946237821,-1562.1591309,0.00025,2]
[381014687,1755946237905,-1306.30190078,0.00025,2]
[381014688,1755946237917,-7605.16623256,0.00025,2]
[381014689,1755946237927,-160.0,0.0002548,2]
[381014690,1755946238021,-215.94678008,0.00025481,2]
[381014691,1755946238050,-160.0,0.00025482,2]
[381014692,1755946238060,-160.0,0.00025482,2]
[381014693,1755946238070,-600.0,0.00025486,2]
[381014694,1755946238079,-150.1,0.00025716,7]
[381014695,1755946238090,-150.1,0.00025816,7]
[381014696,1755946238102,-150.1,0.00025916,7]
[381014697,1755946238111,-337.62257598,0.00025943,4]
[381014698,1755946238120,-3373.80335921,0.00026016,2]
[381014699,1755946238129,-150.1,0.00026016,7]
[381014700,1755946238139,-1296.66400043,0.00026095,2]
[381014701,1755946238148,-150.1,0.00026116,7]
[381014702,1755946238157,-150.1,0.00026216,7]
[381014703,1755946238167,-150.1,0.00026316,7]
[381014704,1755946238176,-150.1,0.00026416,7]
[381014705,1755946238185,-387.0310382,0.00026436,2]
[381014706,1755946238195,-387.0310382,0.00026436,2]
[381014707,1755946238204,-12695.67094824,0.00026499,2]
[381014708,1755946238214,-2030.296672,0.00026509,2]
[381014709,1755946238223,-150.1,0.00026516,7]
[381014710,1755946238232,-151.0,0.00026545,2]
[381014711,1755946238241,-19187.29552238,0.00026545,2]
[381014712,1755946238251,-500.0,0.00026545,2]
[381014713,1755946238260,-500.0,0.00026545,2]
[381014714,1755946238269,-500.0,0.00026545,2]
[381014715,1755946238279,-500.0,0.00026545,2]
[381014716,1755946238289,-500.0,0.00026545,2]
[381014717,1755946238298,-500.0,0.00026545,2]
[381014718,1755946238307,-500.0,0.00026545,2]
[381014719,1755946238316,-500.0,0.00026545,2]
[381014720,1755946238325,-500.0,0.00026545,2]
[381014721,1755946238335,-500.0,0.00026545,2]
[381014722,1755946238345,-2105.41764886,0.00026564,2]
[381014723,1755946238354,-500.0,0.00026573,2]
[381014724,1755946238364,-276.90028288,0.00026573,2]
[381014725,1755946238374,-600.0,0.00026582,2]
[381014726,1755946238383,-173.042823,0.00026605,2]
[381014727,1755946238392,-150.1,0.00026616,7]
[381014728,1755946238402,-2183.31810187,0.00026619,2]
[381014729,1755946238411,-1088.10924927,0.00026674,2]
[381014730,1755946238421,-150.1,0.00026716,7]
[381014731,1755946238431,-153.0,0.00026765,2]
[381014732,1755946238440,-153.0,0.00026765,2]
[381014733,1755946238449,-153.0,0.00026765,2]
[381014734,1755946238458,-153.0,0.00026765,2]
[381014735,1755946238468,-153.0,0.00026765,2]
[381014736,1755946238477,-153.0,0.00026765,2]
[381014737,1755946238486,-500.0,0.00026765,2]
[381014738,1755946238495,-150.22,0.00026816,7]
[381014739,1755946238505,-500.0,0.00027039,2]
[381014740,1755946238514,-1226.0,0.00027205,2]
[381014741,1755946238523,-351.05583974,0.00027222,2]
[381014742,1755946238533,-168.0,0.00027262,2]
[381014743,1755946238543,-500.0,0.00027313,2]
[381014744,1755946238552,-1579.82660713,0.00027383,2]
[381014745,1755946238561,-387.0310382,0.00027395,2]
[381014746,1755946238570,-387.0310382,0.00027395,2]
[381014747,1755946238580,-387.0310382,0.00027395,2]
[381014748,1755946238589,-387.0310382,0.00027395,2]
[381014749,1755946238598,-387.0310382,0.00027395,2]
[381014750,1755946238607,-387.0310382,0.00027395,2]
[381014751,1755946238617,-386.247095,0.00027395,2]
[381014752,1755946238626,-151.0,0.00027395,2]
[381014753,1755946238636,-198.6198795,0.00027395,2]
[381014754,1755946238645,-151.0,0.00027395,2]
[381014755,1755946238654,-151.0,0.00027395,2]
[381014756,1755946238663,-151.0,0.00027395,2]
[381014757,1755946238673,-151.19546722,0.00027395,2]
[381014758,1755946238683,-151.0,0.00027395,2]
[381014759,1755946238693,-151.24182201,0.00027395,2]
[381014760,1755946238705,-151.21057319,0.00027395,2]
[381014761,1755946238715,-160.0,0.0002742,2]
[381014762,1755946238726,-376.14580871,0.00027463,2]
[381014763,1755946238736,-160.0,0.00027463,2]
[381014764,1755946238745,-160.0,0.00027465,2]
[381014765,1755946238755,-294.1207637,0.00027532,30]
[381014766,1755946238774,-308.2744988,0.00027532,30]
[381014767,1755946238788,-581.3595559,0.00027532,30]
[381014768,1755946238803,-160.9697672,0.00027532,30]
[381014769,1755946238819,-160.9697672,0.00027532,30]
[381014770,1755946238835,-581.3595559,0.00027532,30]
[381014771,1755946238851,-294.1207637,0.00027532,30]
[381014772,1755946238867,-168.0,0.00027532,2]
[381014773,1755946238881,-168.0,0.00027644,2]
[381014774,1755946238898,-151.0,0.00027669,2]
[381014775,1755946238911,-151.0,0.00027669,2]
[381014776,1755946238924,-151.0,0.00027669,2]
[381014777,1755946238938,-337.62257598,0.00027669,8]
[381014778,1755946238953,-600.0,0.00027678,7]
[381014779,1755946238969,-500.0,0.00027841,2]
[381014780,1755946238987,-201.92131772,0.00027871,7]
[381014781,1755946238999,-151.67432077,0.00027871,7]
[381014782,1755946239013,-151.88011032,0.00027871,7]
[381014783,1755946239035,-151.0,0.00027871,7]
[381014784,1755946239048,-151.0,0.00027871,7]
[381014785,1755946239065,-151.0,0.00027871,7]
[381014786,1755946239077,-260.06449764,0.00027871,7]
[381014787,1755946239089,-152.79411932,0.00027871,7]
[381014788,1755946239104,-151.0,0.00027871,7]
[381014789,1755946239118,-151.0,0.00027871,7]
[381014790,1755946239132,-151.0,0.00027871,7]
[381014791,1755946239145,-156.48824487,0.00027871,7]
[381014792,1755946239159,-168.0,0.00027871,2]
[381014793,1755946239171,-151.0,0.00027914,2]
[381014794,1755946239184,-151.0,0.00027943,2]
[381014795,1755946239197,-151.0,0.00027943,2]
[381014796,1755946239210,-151.0,0.00027943,2]
[381014797,1755946239224,-358.81,0.0002798,10]
[381014798,1755946239237,-168.0,0.0002799,2]
[381014799,1755946239250,-8992.24241504,0.0002799,2]
[381014800,1755946239263,-262.13720532,0.0002799,2]
[381014801,1755946239276,-299.01,0.0002799,10]
[381014802,1755946239289,-7776.73045689,0.00028,2]
[381014803,1755946239303,-232.37252479,0.00028,3]
[381014804,1755946239316,-844.50316758,0.00028,3]
[381014805,1755946239329,-632.47462183,0.0002803,2]
[381014806,1755946239343,-505.45586549,0.00028039,2]
[381014807,1755946239355,-5465.510771,0.0002804,2]
[381014808,1755946239368,-632.47462181,0.00028058,2]
[381014809,1755946239381,-632.47462181,0.00028085,2]
[381014810,1755946239394,-454.43707438,0.00028113,2]
[381014855,1755946240224,-178.03754743,0.00028113,2]
[381014857,1755946240236,-623.18,0.0002812,3]
[381014859,1755946240246,-311.59,0.0002812,3]
[381014861,1755946240255,-155.8,0.0002812,3]
[381014863,1755946240264,-467.41,0.0002812,3]
[381014865,1755946240274,-53224.88959022,0.0002813,2]
[381014868,1755946240286,-18713.04973008,0.0002813,2]
[381014869,1755946240295,-2097.09764256,0.0002813,2]
[381014871,1755946240304,-439.69522613,0.00028139,2]
[381014873,1755946240314,-500.0,0.00028139,5]
[381014875,1755946240323,-157770.72332842,0.0002814,2]
[381015084,1755946243078,-160.0,0.00027463,2]
[381015085,1755946243089,-474.596039,0.00028119,2]
[381015149,1755946382846,208.89516231,0.000199,2]
[381015174,1755946558828,201.93199032,0.000199,2]
[381015175,1755946767299,756.0,0.0002,2]
[381015179,1755946904698,200.1443181,0.000199,2]
[381015186,1755947268787,165.848041,0.00013699,2]
[381015245,1755947436008,-389.5588102,0.0002249,2]
[381015246,1755947436018,-389.5588102,0.00024216,2]
[381015247,1755947436028,-160.0,0.00025441,2]
[381015248,1755947436037,-1200.0,0.00025458,2]
[381015249,1755947436047,-1000.0,0.00025459,2]
[381015250,1755947436056,-12695.67094824,0.00025459,2]
[381015251,1755947436066,-529.05847148,0.00025481,2]
[381015252,1755947436075,-500.0,0.00025486,2]
[381015253,1755947436084,-500.0,0.00025656,2]
[381015254,1755947436094,-500.0,0.00025906,2]
[381015255,1755947436103,-389.5588102,0.00025943,4]
[381015256,1755947436112,-500.0,0.00026126,2]
[381015257,1755947436121,-500.0,0.00026381,2]
[381015258,1755947436131,-500.0,0.00026563,2]
[381015259,1755947436140,-8451.17654004,0.00026563,2]
[381015260,1755947436150,-160.0,0.00026565,2]
[381015261,1755947436160,-376.14580871,0.00026566,2]
[381015262,1755947436169,-215.94678008,0.00026566,2]
[381015263,1755947436178,-160.0,0.00026566,2]
[381015264,1755947436196,-160.0,0.00026566,2]
[381015266,1755947436212,-500.0,0.00026582,2]
[381015267,1755947436222,-500.0,0.00026683,2]
[381015268,1755947436231,-168.0,0.000267,2]
[381015269,1755947436240,-294.1207637,0.0002671,2]
[381015270,1755947436250,-160.9697672,0.0002671,2]
[381015271,1755947436260,-580.1566146,0.0002671,2]
[381015272,1755947436270,-293.8144067,0.0002671,2]
[381015273,1755947436280,-153.0,0.0002674,2]
[381015274,1755947436289,-153.0,0.0002674,2]
[381015276,1755947436299,-276.90028288,0.00026775,2]
[381015277,1755947436308,-500.0,0.00026819,2]
[381015278,1755947436318,-2030.296672,0.00026821,2]
[381015279,1755947436327,-151.0,0.00026821,2]
[381015280,1755947436336,-3539.2848011,0.00026821,2]
[381015281,1755947436346,-527.79444234,0.00026876,2]
[381015282,1755947436407,-1577.62320652,0.00026876,2]
[381015283,1755947436417,-2183.31810187,0.00026931,2]
[381015284,1755947436427,-730.74177413,0.00026976,7]
[381015286,1755947436440,-160.25822587,0.00026976,7]
[381015288,1755947436451,-138.56692579,0.00026986,2]
[381015291,1755947436470,-117.91178249,0.00026986,2]
[381015293,1755947436480,-500.0,0.00027044,2]
[381015295,1755947436490,-500.0,0.00027169,2]
[381015296,1755947436499,-160.9697672,0.00027378,2]
[381015298,1755947436509,-581.3595559,0.00027378,2]
[381015300,1755947436519,-294.1207637,0.00027378,2]
[381015302,1755947436529,-848.61067182,0.00027383,2]
[381015304,1755947436538,-500.0,0.0002751,2]
[381015306,1755947436547,-783.0,0.00027563,2]
[381015308,1755947436557,-783.0,0.00027662,2]
[381015310,1755947436566,-389.5588102,0.00027669,8]
[381015312,1755947436575,-500.0,0.00027678,7]
[381015314,1755947436585,-1200.0,0.00027691,2]
[381015316,1755947436595,-219.0,0.00027727,2]
[381015318,1755947436604,-190.0,0.00027734,2]
[381015320,1755947436613,-783.0,0.00027814,7]
[381015322,1755947436623,-2426.49786758,0.00027944,2]
[381015389,1755947438052,-1177.35,0.00027944,2]
[381015390,1755947438160,-922.73109056,0.00027944,2]
[381015391,1755947438170,-500.0,0.00027957,2]
[381015392,1755947438179,-1222.15414901,0.0002797,2]
[381015393,1755947438189,-219.0,0.00027992,2]
[381015394,1755947438199,-1956.02,0.00027999,2]
[381015395,1755947438208,-692.69282139,0.0002801,2]
[381015396,1755947438218,-1222.15414901,0.00028013,2]
[381015397,1755947438227,-1404.79,0.0002802,10]
[381015398,1755947438236,-1170.66,0.0002802,10]
[381015399,1755947438246,-363.52,0.0002803,3]
[381015400,1755947438255,-181.76,0.0002803,3]
[381015402,1755947438265,-545.3,0.0002803,3]
[381015403,1755947438274,-24875.53779003,0.0002803,2]
[381015404,1755947438285,-406.20930091,0.0002803,2]
[381015405,1755947438297,-9338.38620706,0.0002803,2]
[381015406,1755947438307,-1080.08545736,0.0002803,2]
[381015407,1755947438317,-939.12941461,0.0002803,10]
[381015409,1755947438329,-746.61058539,0.0002803,10]
[381015410,1755947438338,-4689.58941461,0.00028034,2]
[381015411,1755947438364,-256.14391367,0.00028034,2]
[381015412,1755947438374,-154.29792248,0.00028034,2]
[381015413,1755947438383,-332.47879621,0.00028039,2]
[381015441,1755947440058,-294.33620848,0.00028039,2]
[381015443,1755947440068,-500.0,0.00028039,2]
[381015445,1755947440077,-500.0,0.00028039,2]
[381015447,1755947440087,-500.0,0.00028039,2]
[381015448,1755947440096,-279.6896215,0.00028039,2]
[381015450,1755947440105,-151.0,0.00028039,2]
[381015452,1755947440115,-151.0,0.00028039,2]
[381015454,1755947440123,-151.0,0.00028039,2]
[381015456,1755947440132,-151.0,0.00028039,2]
[381015458,1755947440141,-151.0,0.00028039,2]
[381015460,1755947440150,-151.0,0.00028039,2]
[381015462,1755947440160,-151.42477035,0.00028039,2]
[381015464,1755947440169,-151.0,0.00028039,2]
[381015466,1755947440178,-151.0,0.00028039,2]
[381015468,1755947440186,-151.0,0.00028039,2]
[381015470,1755947440195,-151.0,0.00028039,2]
[381015472,1755947440204,-151.0,0.00028039,2]
[381015474,1755947440213,-151.59980847,0.00028039,2]
[381015476,1755947440223,-151.27744498,0.00028039,2]
[381015478,1755947440231,-198.69854472,0.00028039,2]
[381015480,1755947440242,-151.50406274,0.00028039,2]
[381015482,1755947440251,-689.51042252,0.0002804,2]
[381015483,1755947440260,-1591.21841598,0.0002804,2]
[381015485,1755947440271,-263743.49393516,0.0002804,2]
[381015562,1755947443196,-632.771719,0.0002804,2]
[381015576,1755947443314,-22585.32039408,0.0002804,2]
[381015619,1755947446174,-362.74622389,0.0002804,2]
[381015626,1755947446229,-972.0,0.0002804,2]
[381015628,1755947446241,-4190.52902239,0.0002804,2]
[381015630,1755947446252,-6711.69875946,0.0002804,2]
[381015635,1755947446285,-4302.15071781,0.0002804,2]
[381015637,1755947446296,-1034.00853371,0.0002804,2]
[381015639,1755947446309,-781.03900895,0.0002804,2]
[381016576,1755948313965,165.848041,0.00013699,2]
[381016823,1755948525719,15286.9525825,0.0002,2]
[381016825,1755948528685,5773.6555009,0.0002,2]
[381016843,1755948632346,-220.0,0.00020355,2]
[381016846,1755948632356,-300.0,0.00022389,2]
[381016849,1755948632366,-250.0,0.0002239,2]
[381016854,1755948632454,-1053.86682041,0.0002239,2]
[381016868,1755948638342,-470.895,0.0002239,2]
[381016873,1755948638400,-500.79876873,0.0002239,2]
[381016874,1755948638411,-1094.41,0.0002239,2]
[381016875,1755948638423,-6017.15361763,0.0002239,2]
[381016876,1755948638434,-8502.63980822,0.0002239,2]
[381016877,1755948638444,-500.0,0.000224,2]
[381016878,1755948638453,-285.6764608,0.0002249,2]
[381016880,1755948638462,-1000.0,0.00022948,2]
[381016881,1755948638472,-1500.0,0.00023496,2]
[381016882,1755948638481,-250.0,0.00023958,2]
[381016883,1755948638490,-2000.0,0.00024044,2]
[381016884,1755948638500,-167.237264,0.00024191,2]
[381016885,1755948638512,-763.01559418,0.00024197,2]
[381016886,1755948638522,-285.6764608,0.00024216,2]
[381016887,1755948638531,-420.0,0.0002432,2]
[381016888,1755948638540,-2500.0,0.00024592,2]
[381016889,1755948638549,-110.81230346,0.0002514,2]
[381016890,1755948638561,-2889.18769654,0.0002514,2]
[381016891,1755948638571,-160.0,0.00025441,2]
[381016892,1755948638581,-500.0,0.00025486,2]
[381016893,1755948638591,-500.0,0.00025553,2]
[381016894,1755948638600,-1592.61073297,0.00025688,2]
[381016934,1755948640422,-1907.38926703,0.00025688,2]
[381016936,1755948640431,-5282.1484506,0.0002576,2]
[381016939,1755948640442,-500.0,0.00025908,2]
[381016941,1755948640451,-285.6764608,0.00025943,4]
[381016942,1755948640460,-436.2681343,0.00026142,2]
[381016944,1755948640469,-422.26357404,0.00026236,2]
[381016946,1755948640478,-587.0,0.00026417,2]
[381016948,1755948640488,-161.182203,0.00026535,4]
[381016950,1755948640497,-160.0,0.00026565,2]
[381016952,1755948640506,-500.0,0.00026582,2]
[381016954,1755948640527,-201.93286099,0.00026821,2]
[381016956,1755948640537,-16173.80069625,0.00027001,5]
[381016958,1755948640546,-161.182203,0.0002729,20]
[381016961,1755948640555,-209.40437684,0.00027369,2]
[381016962,1755948640564,-161.182203,0.00027374,7]
[381016964,1755948640573,-424.30533591,0.00027383,2]
[381016966,1755948640582,-161.182203,0.00027479,2]
[381016968,1755948640592,-285.6764608,0.00027669,8]
[381016971,1755948640604,-500.0,0.00027678,7]
[381016973,1755948640614,-161.182203,0.00027839,20]
[381016975,1755948640623,-500.0,0.00027872,2]
[381016976,1755948640633,-217.15233878,0.00027917,2]
[381016978,1755948640642,-3017.71930544,0.00027929,2]
[381016991,1755948640652,-733.29248943,0.00027939,2]
[381016994,1755948640765,-733.2924894,0.00027989,2]
[381016996,1755948640774,-763.0,0.00028,7]
[381016998,1755948640783,-529.05847148,0.00028008,2]
[381017000,1755948640792,-215.94678008,0.00028008,2]
[381017002,1755948640801,-20772.0799787,0.00028012,2]
[381017004,1755948640810,-720.05697162,0.00028012,2]
[381017006,1755948640819,-500.38015794,0.00028012,2]
[381017007,1755948640827,-336.04,0.00028012,3]
[381017009,1755948640836,-504.06,0.00028012,3]
[381017011,1755948640846,-252.03,0.00028012,3]
[381017013,1755948640855,-756.12,0.00028012,3]
[381017015,1755948640864,-677.46,0.00028012,10]
[381017018,1755948640874,-438.77050328,0.00028021,2]
[381017019,1755948640883,-1874.52,0.00028021,2]
[381017021,1755948640892,-344.75521126,0.00028022,2]
[381017023,1755948640902,-73786.00429512,0.00028022,2]
[381017264,1755948643446,-8176.3538131,0.00028022,2]
[381017562,1755948646454,-199.0,0.00026749,20]
[381017563,1755948646463,-1138.380915,0.00028022,2]
[381017566,1755948646475,-707.26124153,0.00028022,2]
[381017575,1755948646560,-383.49340965,0.00028022,2]
[381020662,1755948737851,326.4063673,0.000199,2]
[381020675,1755948904672,315.52615525,0.000199,2]
[381020691,1755949074307,305.00861679,0.000199,2]
[381020694,1755949245628,294.84166281,0.000199,2]
[381020699,1755949374829,165.848041,0.00013699,2]
[381020704,1755949411538,285.01360747,0.000199,2]
[381020707,1755949594127,-152.7718723,0.000224,2]
[381020708,1755949594652,-133.47386144,0.00023387,2]
[381020709,1755949595864,264.19807382,0.000199,2]
[381020712,1755949761955,255.39147134,0.000199,2]
[381020755,1755949832639,-255.39147116,0.00021627,2]
[381020757,1755949832648,-391.55208587,0.00022817,2]
[381020759,1755949832658,-531.21360765,0.00022838,2]
[381020761,1755949832667,-255.39147116,0.00023353,2]
[381020763,1755949832676,-33.76340256,0.00023387,2]
[381020764,1755949832685,-160.0,0.00023684,2]
[381020766,1755949832695,-479.01414187,0.00023702,2]
[381020768,1755949832704,-1200.0,0.00024279,2]
[381020770,1755949832714,-1054.0,0.0002428,2]
[381020773,1755949832724,-300.0,0.0002428,2]
[381020774,1755949832733,-300.0,0.0002428,2]
[381020776,1755949832742,-300.0,0.0002428,2]
[381020778,1755949832751,-9091.9892558,0.00024281,2]
[381020780,1755949832760,-500.0,0.00024633,2]
[381020782,1755949832770,-215.94678008,0.00024778,2]
[381020784,1755949832778,-529.05847148,0.00024778,2]
[381020786,1755949832788,-160.0,0.00024778,2]
[381020788,1755949832797,-160.0,0.0002478,2]
[381020790,1755949832807,-160.0,0.0002478,2]
[381020792,1755949832816,-160.0,0.0002478,2]
[381020794,1755949832825,-7388.43326433,0.0002478,2]
[381020796,1755949832834,-376.14580871,0.0002479,2]
[381020798,1755949832845,-587.7072527,0.00024877,2]
[381020800,1755949832854,-223.98794618,0.00024971,2]
[381020802,1755949832864,-223.98794618,0.00024971,2]
[381020804,1755949832873,-255.39147116,0.0002508,2]
[381020806,1755949832882,-500.0,0.00025486,2]
[381020808,1755949832892,-500.0,0.00025627,2]
[381020810,1755949832901,-500.0,0.0002564,2]
[381020812,1755949832911,-500.0,0.00026206,2]
[381020814,1755949832921,-420.0,0.00026322,2]
[381020816,1755949832931,-500.0,0.00026582,2]
[381020818,1755949832941,-157.8979038,0.0002674,30]
[381020820,1755949832951,-539.856,0.00026806,14]
[381020822,1755949832960,-215.90102741,0.00026806,14]
[381020824,1755949832970,-2263.16804245,0.00026821,2]
[381020826,1755949832980,-201.93286099,0.00026821,2]
[381020828,1755949832990,-437.4589901,0.00026821,2]
[381020830,1755949832999,-500.0,0.00026965,2]
[381020832,1755949833010,-157.8979038,0.00027096,30]
[381020834,1755949833019,-500.0,0.00027228,2]
[381020836,1755949833030,-212.15266796,0.00027295,2]
[381020838,1755949833039,-209.40437684,0.00027369,2]
[381020840,1755949833049,-5000.0,0.00027423,3]
[381020842,1755949833060,-157.8979038,0.00027452,30]
[381020844,1755949833069,-620.2481875,0.00027658,2]
[381020846,1755949833079,-500.0,0.00027678,7]
[381020848,1755949833089,-3231.6011619,0.000277,2]
[381020850,1755949833099,-168.0,0.00027805,2]
[381020852,1755949833110,-157.8979038,0.00027808,30]
[381020854,1755949833119,-1117.5448331,0.00027812,2]
[381020856,1755949833128,-5284.18481545,0.00027822,2]
[381020858,1755949833138,-1117.54483307,0.00027888,2]
[381020860,1755949833147,-7386.9782108,0.00027902,2]
[381020862,1755949833157,-1995.896479,0.00027911,2]
[381020864,1755949833169,-246.143521,0.00027911,2]
[381020866,1755949833180,-78.10527181,0.00027912,2]
[381020868,1755949833191,-2632.04794761,0.00027912,2]
[381020871,1755949833203,-19669.23494318,0.00027912,2]
[381020911,1755949838531,-36716.4375238,0.00027912,2]
[381020912,1755949838541,-774.79,0.00027912,3]
[381020913,1755949838550,-387.4,0.00027912,3]
[381020914,1755949838559,-193.7,0.00027912,3]
[381020915,1755949838568,-581.1,0.00027912,3]
[381020916,1755949838577,-217.15233878,0.00027917,2]
[381020917,1755949838586,-500.0,0.00027921,2]
[381020918,1755949838595,-233.32182418,0.00027921,2]
[381020919,1755949838604,-500.0,0.00027921,2]
[381020920,1755949838614,-500.0,0.00027921,2]
[381020921,1755949838622,-500.0,0.00027921,2]
[381020922,1755949838632,-500.0,0.00027921,2]
[381020923,1755949838641,-500.0,0.00027921,2]
[381020924,1755949838651,-500.0,0.00027921,2]
[381020925,1755949838660,-500.0,0.00027921,2]
[381020926,1755949838669,-190.93571439,0.00027921,2]
[381020927,1755949838678,-500.0,0.00027921,2]
[381020928,1755949838688,-500.0,0.00027921,2]
[381020929,1755949838698,-500.0,0.00027921,2]
[381020930,1755949838707,-500.0,0.00027921,2]
[381020931,1755949838716,-500.0,0.00027921,2]
[381020932,1755949838726,-500.0,0.00027921,2]
[381020933,1755949838735,-500.0,0.00027921,2]
[381020934,1755949838745,-216.12377582,0.00027921,2]
[381020935,1755949838754,-486.9361398,0.00027921,2]
[381020936,1755949838764,-560.84089213,0.00027921,2]
[381020937,1755949838774,-500.0,0.00027921,2]
[381020938,1755949838783,-500.0,0.00027921,2]
[381020939,1755949838793,-500.0,0.00027921,2]
[381020940,1755949838803,-499.99999999,0.00027921,2]
[381020941,1755949838812,-1057.83899814,0.00027922,2]
[381020942,1755949838822,-370000.0,0.00027922,2]
[381020943,1755949838831,-151.0,0.00027922,7]
[381020944,1755949838841,-152.239268,0.00027922,7]
[381020945,1755949838851,-151.0,0.00027922,7]
[381020946,1755949838860,-151.0,0.00027922,7]
[381020947,1755949838870,-151.0,0.00027922,7]
[381020948,1755949838879,-151.0,0.00027922,7]
[381020949,1755949838888,-151.0,0.00027922,7]
[381020950,1755949838898,-151.0,0.00027922,7]
[381020951,1755949838907,-604.006236,0.00027922,7]
[381020952,1755949838916,-604.006236,0.00027922,7]
[381020953,1755949838926,-604.006236,0.00027922,7]
[381020954,1755949838935,-604.006236,0.00027922,7]
[381020955,1755949838944,-152.669651,0.00027922,7]
[381020956,1755949838953,-151.0,0.00027922,7]
[381020957,1755949838962,-151.0,0.00027922,7]
[381020958,1755949838972,-151.0,0.00027922,7]
[381020959,1755949838981,-151.0,0.00027922,7]
[381020960,1755949838991,-805.946692,0.00027922,7]
[381020961,1755949839000,-151.0,0.00027922,7]
[381020962,1755949839010,-219.000282,0.00027922,7]
[381020963,1755949839020,-151.0,0.00027922,7]
[381020964,1755949839029,-208.599095,0.00027922,7]
[381020965,1755949839039,-805.946692,0.00027922,7]
[381020966,1755949839048,-239.638944,0.00027922,7]
[381020967,1755949839057,-151.0,0.00027922,7]